[Event "CCT Airthings Masters Play-In 2023"]
[Site "Online"]
[Date "2023.02.03"]
[Round "4"]
[White "Firouzja, Alireza"]
[Black "Durarbayli, Vasif"]
[Result "1-0"]
[ECO "B90"]
[WhiteElo "2785"]
[BlackElo "2635"]
[Annotator "TA"]
[PlyCount "101"]
[EventDate "2023.02.03"]
[EventType "swiss"]
[EventCountry "NET"]
[SourceTitle "playchess.com"]
[Source "ChessBase"]
[SourceQuality "1"]
[TimeControl "600+2"]

{[%evp 11,101,5,6,22,24,8,11,18,12,11,172,1,8,0,0,0,0,0,0,0,29,25,28,25,25,0,56,43,50,46,59,47,48,49,43,45,49,52,59,39,46,29,54,36,47,49,38,48,48,40,45,7,20,0,0,0,52,0,0,0,0,0,0,0,42,0,23,18,32,-39,-35,-206,-211,-178,-193,-185,-16,-16,0,0,0,-15,0,0,29992,29993,29993,29994,29994,29995,29995,-290]} 1. e4 {[%emt 0:00:03]} c5 {[%emt 0:00:08]} 2. Nf3 {[%emt 0:00:02]} d6 {[%emt 0:00:01]} 3. d4 {[%emt 0:00:02]} cxd4 {[%emt 0:00:00]} 4. Nxd4 {[%emt 0:00:00]} Nf6 {[%emt 0:00:01]} 5. Nc3 {[%emt 0:00:01]} a6 {[%emt 0:00:00]} 6. Bd3 {[%emt 0:00:11]} g6 {[%emt 0:00:10]} 7. f3 {[%emt 0:00:04] B90: Sicilian Najdorf: Unusual White 6th moves, 6 Be3 Ng4 and 6 Be3 e5.} Nc6 {[%emt 0:00:07]} 8. Be3 {[%emt 0:00:16]} Qb6 {[%emt 0:00:57][%cal Ob6b2] [#]} 9. a3 $1 {[%emt 0:00:02][%cal Od1d2] The position is equal.} e5 {[%emt 0:00:12]} ({Resist} 9... Nxd4 10. Bxd4 Qc6 11. Nd5 $16) 10. Nf5 {[%emt 0:00:02][%mdl 64] [#] Discovered Attack} (10. Bg5 {is interesting.} exd4 11. Bxf6 dxc3 12. Bxh8 cxb2 13. Rb1) 10... Qc7 $146 {[%emt 0:00:03]} (10... Qxb2 $2 11. Na4 $18) (10... Qd8 $1 $11 {and Black is okay.} 11. Ng3 Be6) ({Predecessor:} 10... Qd8 11. Ng3 Be6 12. Qd2 h5 13. O-O-O Be7 14. Kb1 Rc8 15. Nge2 b5 16. Nd5 Bxd5 17. exd5 {0-1 Adams,M (2714)-Deac,B (2651) EU-chT 23rd Terme Catez 2021 (7.1)}) 11. Ng3 $2 {[%emt 0:00:13]} (11. Bg5 $1 $18 {[%cal Rg5f6]} Nh5 12. Nd5) 11... Be6 {[%emt 0:00:09]} 12. O-O {[%emt 0:00:06]} Bg7 {[%emt 0:00:09]} 13. Qd2 {[%emt 0:00:23]} O-O {[%emt 0:00:12]} 14. Bg5 {[%emt 0:00:01]} Rac8 {[%emt 0:00:31]} 15. Kh1 {[%emt 0:00:02]} Nd7 {[%emt 0:00:21] [#]} 16. Nf5 $1 {[%emt 0:00:07]} Bf6 {[%emt 0:01:41]} (16... gxf5 17. exf5) 17. Bxf6 {[%emt 0:01:55]} Nxf6 {[%emt 0:00:01]} 18. Qh6 {[%emt 0:00:00][%csl Gf5][%cal Rh6g7]} (18. Rae1 {simplifies} Bxf5 19. exf5 d5 20. Nd1) 18... Ne8 {[%emt 0:00:05] Inhibits Qg7+.} (18... Bxf5 $11 19. exf5 d5) 19. f4 {[%emt 0:00:20]} f6 {[%emt 0:00:28]} (19... gxf5 $2 20. exf5 f6 21. Rf3 $18) 20. Ne3 {[%emt 0:00:21]} Qg7 {[%emt 0:00:10]} 21. Qh4 {[%emt 0:00:02]} exf4 {[%emt 0:00:40]} 22. Qxf4 {[%emt 0:00:01]} Ne5 {[%emt 0:00:00]} 23. Rad1 {[%emt 0:00:02]} Nc7 {[%emt 0:00:08]} 24. Be2 {[%emt 0:00:03]} Rcd8 {[%emt 0:00:05]} 25. Rd2 {[%emt 0:00:08]} b5 {[%emt 0:00:23]} 26. Rfd1 {[%emt 0:00:06]} Qe7 {[%emt 0:00:01]} 27. a4 {[%emt 0:00:04]} b4 {[%emt 0:00:05]} 28. Ncd5 {[%emt 0:00:01]} Bxd5 {[%emt 0:00:04]} 29. Nxd5 {[%emt 0:00:01]} Nxd5 {[%emt 0:00:01]} 30. Rxd5 {[%emt 0:00:00]} Qc7 {[%emt 0:00:12]} 31. R1d2 {[%emt 0:00:37]} a5 {[%emt 0:00:03]} 32. h3 {[%emt 0:00:01]} Kg7 {[%emt 0:00:10]} 33. Qe3 {[%emt 0:00:03]} Rfe8 {[%emt 0:00:16]} (33... Nf7 $11) 34. Qd4 {[%emt 0:00:05]} (34. c3 $1 $14) 34... Nf7 $11 {[%emt 0:00:01]} 35. Bc4 {[%emt 0:00:19]} Re5 {[%emt 0:00:16]} 36. Rb5 {[%emt 0:00:01]} Ng5 {[%emt 0:01:12]} 37. Bd5 {[%emt 0:00:03] Black must now prevent Rb7.} Ne6 {[%emt 0:00:01]} 38. Qe3 {[%emt 0:00:54] Threatens to win with Rb7.} (38. Qb6 {simplifies} Qxb6 39. Rxb6 Nc5 40. Rb5) 38... Nc5 {[%emt 0:00:03] Dodges Rb7} 39. c3 {[%emt 0:00:00]} b3 {[%emt 0:00:38][%mdl 64] Deflection} 40. Bxb3 {[%emt 0:01:00]} ({Better is} 40. Qd4 $14) 40... Rxe4 $15 {[%emt 0:00:10]} (40... Nxe4 $2 41. Rxe5 dxe5 42. Rxd8 Qxd8 43. Qxe4 $18) 41. Qf3 {[%emt 0:00:44]} (41. Qf2 $15) 41... Re1+ $19 {[%emt 0:00:32]} 42. Kh2 {[%emt 0:00:01]} d5+ $1 {[%emt 0:00:00]} 43. g3 {[%emt 0:00:01]} Nxb3 $2 {[%emt 0:00:20]} (43... Ne4 $1 $19 {[%cal Re4d2]} 44. Rd3 Re8) 44. Rxb3 $11 {[%emt 0:00:01]} Rde8 {[%emt 0:00:17] Strongly threatening ...R8e3.} (44... h5 {looks sharper.} 45. Kg2 Rd7 46. Rb5 d4) 45. Rf2 $1 {[%emt 0:00:25]} Qc6 {[%emt 0:00:25] ...R8e3 is the strong threat.} 46. Rb5 {[%emt 0:00:06][%cal Bb3b5,Bb5d5,Bd5d7][%mdl 32]} Ra1 {[%emt 0:00:00]} 47. Rxd5 {[%emt 0:00:27]} Ree1 $2 {[%emt 0:00:02][%mdl 8192] [#]} (47... h5 $11) 48. Rd7+ $3 {[%emt 0:00:06][%mdl 576] Skewer, Deflection. White mates.} Qxd7 {[%emt 0:00:01]} 49. Qxf6+ {[%emt 0:00:01]} Kh6 {[%emt 0:00:00] [#]} 50. Qf4+ $1 {[%emt 0:00:03]} g5 {[%emt 0:00:08]} 51. Qf6+ {[%emt 0:00:01][%mdl 32768] Beautiful play by Firouzja!   Weighted Error Value: White=0.21 (precise) /Black=0.30. Loss on time!?} 1-0

[Event "CCT Airthings Masters Play-In 2023"]
[Site "Online"]
[Date "2023.02.03"]
[Round "4"]
[White "VladimirKramnik"]
[Black "BilodeauA"]
[Result "1-0"]
[ECO "A26"]
[WhiteElo "2771"]
[BlackElo "2649"]
[Annotator "TA"]
[PlyCount "112"]
[EventDate "2023.02.03"]
[EventType "swiss"]
[EventCountry "NET"]
[SourceTitle "playchess.com"]
[Source "ChessBase"]
[SourceQuality "1"]
[TimeControl "600+2"]

{[%evp 20,112,0,-7,0,-8,-1,-8,10,10,0,0,0,0,0,-5,18,0,-7,0,0,6,70,61,81,67,70,30,30,30,28,25,31,30,64,64,64,57,52,47,55,54,63,47,41,41,77,77,77,77,77,65,66,47,51,52,163,166,154,150,149,148,142,142,127,120,159,166,164,155,165,137,251,268,345,344,453,447,581,450,438,427,429,416,613,630,744,733,1749,1676,29973,29974,29980,29981,29989]} 1. c4 {[%emt 0:00:22]} e5 {[%emt 0:00:08]} 2. d3 {[%emt 0:00:02]} Nc6 {[%emt 0:00:07]} 3. Nf3 {[%emt 0:00:02]} g6 {[%emt 0:00:08]} 4. Nc3 {[%emt 0:00:05]} Bg7 {[%emt 0:00:04]} 5. g3 {[%emt 0:00:01]} d6 {[%emt 0:00:06]} 6. Bg2 {[%emt 0:00:02]} Nge7 {[%emt 0:00:02]} 7. O-O {[%emt 0:00:16]} O-O {[%emt 0:00:01]} 8. Rb1 {[%emt 0:00:07]} a5 {[%emt 0:00:02]} 9. a3 {[%emt 0:00:03][%cal Ba2a3,Ba3b4][%mdl 32]} Nd4 {[%emt 0:00:01]} 10. b4 {[%emt 0:00:17]} axb4 {[%emt 0:00:27]} 11. axb4 {[%emt 0:00:02]} Bg4 {[%emt 0:00:25] A26: English Opening vs King's Indian with ...Nc6 and d3.} 12. Nd2 {[%emt 0:00:41]} Qc8 {[%emt 0:00:43]} 13. Re1 {[%emt 0:00:14] [#]} (13. b5 {is interesting.} Bh3 14. Bxh3 Qxh3 15. e3) 13... c6 $146 {[%emt 0:01:48] The position is equal.} ({Predecessor:} 13... h5 14. Nf1 Bh3 15. Bh1 h4 16. Ne3 hxg3 17. hxg3 Kh7 18. Ned5 Nxd5 19. Nxd5 Bg4 {½-½ Zichichi,A (2370)-Seret,J (2390) Olympiad-26 Thessaloniki 1984 (7)}) 14. b5 {[%emt 0:00:02]} h6 {[%emt 0:00:26]} 15. bxc6 {[%emt 0:00:37]} bxc6 {[%emt 0:00:02]} 16. Nb3 {[%emt 0:00:39]} Qd7 {[%emt 0:00:52]} 17. Bd2 {[%emt 0:00:04]} Kh7 {[%emt 0:00:07]} 18. Nxd4 {[%emt 0:00:30]} (18. c5 {feels hotter.} Rfb8 19. cxd6 Qxd6 20. h3) 18... exd4 {[%emt 0:00:01]} 19. Na4 {[%emt 0:00:00] [#] Nb6 would be deadly.} Rab8 {[%emt 0:00:24]} 20. c5 {[%emt 0:00:13]} Nd5 {[%emt 0:00:30]} ({Black should play} 20... dxc5 $11 21. Nxc5 Qf5) 21. Nb6 $14 {[%emt 0:00:25]} Qc7 {[%emt 0:02:54]} 22. Nxd5 {[%emt 0:00:49]} cxd5 {[%emt 0:00:04]} 23. h3 {[%emt 0:00:10]} Be6 {[%emt 0:00:14]} 24. cxd6 {[%emt 0:00:17]} Qxd6 {[%emt 0:00:03]} 25. Qa4 {[%emt 0:00:08] Bb4 is the strong threat.} Ra8 {[%emt 0:00:01]} 26. Bf4 {[%emt 0:00:50] Hoping for Qxa8.} Rxa4 {[%emt 0:00:19]} (26... Qxf4 27. Qxa8 $16) 27. Bxd6 {[%emt 0:00:01]} Rd8 {[%emt 0:00:09]} 28. Bc7 {[%emt 0:00:13]} Rc8 {[%emt 0:00:02]} 29. Rec1 {[%emt 0:00:15]} h5 {[%emt 0:00:01]} 30. Bd6 {[%emt 0:00:32]} Rc3 {[%emt 0:00:05]} 31. Bf4 {[%emt 0:00:09]} Ra2 {[%emt 0:00:07]} 32. Kf1 {[%emt 0:00:05]} Bh6 {[%emt 0:00:14]} 33. Bxh6 {[%emt 0:00:10]} Kxh6 {[%emt 0:00:00]} 34. Re1 {[%emt 0:00:10]} Ra4 {[%emt 0:00:02]} 35. Rb2 {[%emt 0:00:01]} Kg7 {[%emt 0:00:04]} 36. Reb1 {[%emt 0:00:02]} Kf6 {[%emt 0:00:02]} 37. f4 {[%emt 0:00:03]} g5 {[%emt 0:00:21] [#] White stays focused until the end.} (37... Ke7 $14) 38. fxg5+ $1 $18 {[%emt 0:00:04]} Kxg5 {[%emt 0:00:00]} 39. Rb4 {[%emt 0:00:02]} Rxb4 {[%emt 0:00:07]} 40. Rxb4 $16 {[%emt 0:00:02][%mdl 4096] Endgame KRB-KRB} h4 {[%emt 0:00:01]} 41. Kf2 {[%emt 0:00:10]} ({And not} 41. Rxd4 hxg3 42. e3 (42. Bxd5 $2 Bxh3+ 43. Ke1 Rc1+ 44. Kd2 Ra1 $19) (42. h4+ Kf6 $17) 42... Rc2 $11) 41... hxg3+ {[%emt 0:00:02]} 42. Kxg3 {[%emt 0:00:01]} Rc2 {[%emt 0:00:02]} 43. Bf3 {[%emt 0:00:03]} ({Much less strong is} 43. Rxd4 $6 Rxe2 44. h4+ (44. Bxd5 Re3+ 45. Bf3 Bxh3 $11) 44... Kg6 $14) 43... Kf6 {[%emt 0:00:05]} 44. Rxd4 {[%emt 0:00:05]} Ke5 {[%emt 0:00:01]} 45. Ra4 {[%emt 0:00:03]} d4 {[%emt 0:00:03]} (45... Rc8 $16 46. d4+ Kf5) 46. Ra5+ $18 {[%emt 0:00:03]} Kd6 {[%emt 0:00:01]} 47. h4 {[%emt 0:00:01][%cal Bh3h4,Bh4h5,Bh5h6][%mdl 32]} Rc8 {[%emt 0:00:04]} 48. Kf4 {[%emt 0:00:04]} Rg8 {[%emt 0:00:02]} 49. Ra6+ {[%emt 0:00:03]} Ke7 {[%emt 0:00:00]} 50. h5 {[%emt 0:00:06]} Kf6 {[%emt 0:00:04]} 51. Rd6 {[%emt 0:00:04]} Rg1 {[%emt 0:00:03]} (51... Rg5 $142 52. Rxd4 Rf5+ 53. Ke3 Re5+ 54. Kf2 Ra5) 52. Rxd4 {[%emt 0:00:02]} Kg7 {[%emt 0:00:02]} 53. Rd6 {[%emt 0:00:03]} Re1 {[%emt 0:00:02]} 54. d4 {[%emt 0:00:02]} Bc4 {[%emt 0:00:01]} 55. h6+ {[%emt 0:00:02]} Kg8 {[%emt 0:00:01]} 56. Be4 {[%emt 0:00:06][%cal Rd6d8]} Kf8 {[%emt 0:00:04] Weighted Error Value: White=0.07 (flawless) /Black=0.41} 1-0

[Event "CCT Airthings Masters Play-In 2023"]
[Site "Online"]
[Date "2023.02.03"]
[Round "4"]
[White "Wizard456"]
[Black "Arhimow, Mohamed Salem"]
[Result "0-1"]
[ECO "D77"]
[WhiteElo "2768"]
[BlackElo "1567"]
[Annotator "NA"]
[PlyCount "70"]
[EventDate "2023.02.03"]
[EventType "swiss"]
[EventCountry "NET"]
[SourceTitle "playchess.com"]
[Source "ChessBase"]
[SourceQuality "1"]
[TimeControl "600+2"]

1. d4 {[%emt 0:00:03]} Nf6 {[%emt 0:00:19]} 2. c4 {[%emt 0:00:05]} g6 {[%emt 0:00:03]} 3. Nf3 {[%emt 0:00:01]} Bg7 {[%emt 0:00:01]} 4. g3 {[%emt 0:00:01]} d5 {[%emt 0:00:00]} 5. Bg2 {[%emt 0:00:00]} dxc4 {[%emt 0:00:02]} 6. Na3 {[%emt 0:00:01]} c3 {[%emt 0:00:00]} 7. bxc3 {[%emt 0:00:00]} O-O {[%emt 0:00:01]} 8. O-O {[%emt 0:00:02]} c5 {[%emt 0:00:00]} 9. Ne5 {[%emt 0:00:00]} Nc6 {[%emt 0:00:01]} 10. Nac4 {[%emt 0:00:03]} Be6 {[%emt 0:00:02]} 11. Nxc6 {[%emt 0:00:27]} bxc6 {[%emt 0:00:00]} 12. Ne5 {[%emt 0:00:00]} Nd5 {[%emt 0:00:01]} 13. Bd2 {[%emt 0:00:55]} Qc7 {[%emt 0:00:03]} 14. Qc1 {[%emt 0:01:31]} Nxc3 {[%emt 0:00:51]} 15. Bxc3 {[%emt 0:00:27]} cxd4 {[%emt 0:00:03]} 16. Bxd4 {[%emt 0:00:04]} Bxe5 {[%emt 0:00:00]} 17. Bxe5 {[%emt 0:00:00]} Qxe5 {[%emt 0:00:01]} 18. Qxc6 {[%emt 0:00:00]} Rac8 {[%emt 0:00:41]} 19. Qa6 {[%emt 0:01:01]} Rc7 {[%emt 0:00:02]} 20. Rac1 {[%emt 0:00:39]} Rfc8 {[%emt 0:00:03]} 21. Rxc7 {[%emt 0:00:01]} Rxc7 {[%emt 0:00:00]} 22. Bf3 {[%emt 0:00:09]} g5 {[%emt 0:01:51]} 23. Qa4 {[%emt 0:00:40]} Kg7 {[%emt 0:00:11]} 24. e3 {[%emt 0:00:18]} h5 {[%emt 0:01:01]} 25. Rd1 {[%emt 0:00:27]} h4 {[%emt 0:00:16]} 26. Bg2 {[%emt 0:00:17]} h3 {[%emt 0:00:12]} 27. Bf3 {[%emt 0:00:04]} a5 {[%emt 0:00:20]} 28. Qa3 {[%emt 0:00:26]} g4 {[%emt 0:00:21]} 29. Be2 {[%emt 0:00:37]} Rc2 {[%emt 0:00:41]} 30. Bd3 {[%emt 0:00:06]} Rxa2 {[%emt 0:01:13]} 31. Qxe7 {[%emt 0:00:07]} Qd5 {[%emt 0:01:22]} 32. e4 {[%emt 0:00:57]} Qxd3 {[%emt 0:00:02]} 33. Qg5+ {[%emt 0:00:01]} Kf8 {[%emt 0:00:00]} 34. Qh6+ {[%emt 0:01:06]} Ke7 {[%emt 0:00:04]} 35. Qc1 {[%emt 0:00:03]} Rc2 {[%emt 0:00:42]} 0-1

[Event "CCT Airthings Masters Play-In 2023"]
[Site "Online"]
[Date "2023.02.03"]
[Round "4"]
[White "LevonAronian"]
[Black "Fandorine"]
[Result "1-0"]
[ECO "B22"]
[WhiteElo "2762"]
[BlackElo "2563"]
[Annotator "TA"]
[PlyCount "185"]
[EventDate "2023.02.03"]
[EventType "swiss"]
[EventCountry "NET"]
[SourceTitle "playchess.com"]
[Source "ChessBase"]
[SourceQuality "1"]
[TimeControl "600+2"]

{[%evp 47,185,-25,-25,-25,-25,-25,-25,-25,0,-32,-32,-39,-32,-32,-25,-25,0,-62,-14,-83,0,-47,0,-87,0,-111,-28,-80,0,-88,0,-39,0,-65,0,-18,-18,-41,-38,-35,-11,-2,0,0,0,-5,-16,-93,8,8,8,0,64,0,0,0,8,6,8,0,0,0,46,0,192,163,135,0,0,-6,5077,2718,2078,0,0,0,0,8,8,-29981,-29982,-29982,12795,9196,12801,9559,7311,4327,12849,1922,12791,12838,12217,3327,12798,12182,12782,8737,6119,347,1352,100,113,8,8,8,1335,1112,6201,8,8,8,8,0,8,0,0,0,0,0,0,0,0,0,29962,29962,29959,29952,29977,29971,29983,29979,29982,29983,29986,29987,29988,29989,29994,29990]} 1. e4 {[%emt 0:01:53]} c5 {[%emt 0:00:06]} 2. Nf3 {[%emt 0:00:01]} e6 {[%emt 0:00:01]} 3. c3 {[%emt 0:00:01]} d5 {[%emt 0:00:02]} 4. exd5 {[%emt 0:00:01]} Qxd5 {[%emt 0:00:01]} 5. d4 {[%emt 0:00:01]} Nf6 {[%emt 0:00:00]} 6. Na3 {[%emt 0:00:02]} Qd8 {[%emt 0:00:24]} 7. Nc2 {[%emt 0:00:19]} Nc6 {[%emt 0:00:10]} 8. g3 {[%emt 0:00:22]} Be7 {[%emt 0:00:26]} 9. Bg2 {[%emt 0:00:04]} O-O {[%emt 0:00:01]} 10. O-O {[%emt 0:00:01]} Bd7 {[%emt 0:00:01]} 11. Bg5 {[%emt 0:00:15]} cxd4 {[%emt 0:00:10]} 12. Nfxd4 {[%emt 0:00:01]} h6 {[%emt 0:00:09]} 13. Nxc6 {[%emt 0:00:05]} Bxc6 {[%emt 0:00:10]} 14. Bxf6 {[%emt 0:00:05]} Bxf6 {[%emt 0:00:06]} 15. Bxc6 {[%emt 0:00:03]} bxc6 {[%emt 0:00:02]} 16. Ne3 {[%emt 0:00:10]} Rb8 {[%emt 0:00:25]} 17. Qe2 {[%emt 0:00:10]} Qb6 {[%emt 0:00:05]} 18. Nc4 {[%emt 0:00:24]} Qa6 {[%emt 0:00:16]} 19. Rfd1 {[%emt 0:00:10]} Rfd8 {[%emt 0:00:09]} 20. Rxd8+ {[%emt 0:00:06]} Rxd8 {[%emt 0:00:00]} 21. Kf1 {[%emt 0:00:10]} c5 {[%emt 0:01:16]} 22. a4 {[%emt 0:00:03]} g6 {[%emt 0:00:23]} 23. a5 {[%emt 0:00:11]} Kg7 {[%emt 0:00:05]} 24. f3 {[%emt 0:00:07]} h5 {[%emt 0:00:09]} 25. h4 {[%emt 0:00:40]} Qb5 {[%emt 0:01:02]} 26. Kf2 {[%emt 0:00:05]} Rd7 {[%emt 0:00:32]} 27. Rh1 {[%emt 0:00:16]} Qc6 {[%emt 0:00:41]} 28. Qe4 {[%emt 0:00:24]} Rd5 {[%emt 0:00:14]} 29. Kg2 {[%emt 0:00:05]} Qd7 {[%emt 0:00:26]} 30. Re1 {[%emt 0:00:10]} Qd8 {[%emt 0:00:04]} 31. Re2 {[%emt 0:00:11]} Qd7 {[%emt 0:00:18]} 32. Qf4 {[%emt 0:00:14]} (32. Re1 $11) 32... Qb5 {[%emt 0:00:29]} (32... Bd8 $15) 33. Qe4 {[%emt 0:00:09]} (33. Rf2 $11) 33... Qd7 {[%emt 0:00:02]} (33... Bd8 $17) 34. Qc2 {[%emt 0:00:08]} (34. Re1 $11 {should be considered.}) 34... Qb5 {[%emt 0:00:11]} (34... Bd8 $15) 35. Re4 {[%emt 0:00:02]} (35. Qe4 $1 $11 {remains equal.}) 35... Qd7 {[%emt 0:00:07]} (35... Bd8 $1 $17) 36. Qf2 {[%emt 0:00:08]} (36. Re2 $11) 36... Qd8 {[%emt 0:00:54]} (36... Bd8 $1 $17) 37. Rf4 {[%emt 0:00:34]} (37. Re1 $11 {keeps the balance.}) 37... Qd7 {[%emt 0:00:15]} 38. Re4 $1 {[%emt 0:00:09]} Qd8 {[%emt 0:00:03]} ({Black should play} 38... Bd8 $17) 39. Qc2 {[%emt 0:00:08]} Qd7 {[%emt 0:00:13]} 40. Re2 {[%emt 0:00:05]} Rd3 {[%emt 0:00:18]} ({Black should try} 40... Bd8 $1 $15) 41. Kf2 {[%emt 0:00:28]} Qd5 {[%emt 0:00:15]} 42. Ne3 {[%emt 0:00:14]} (42. Re4 {with more complications.} Rd1 43. Re2 Ra1 44. Qe4) 42... Qd8 {[%emt 0:00:11]} 43. Qa4 {[%emt 0:00:09]} Rd6 {[%emt 0:00:15]} (43... Be5 $5 {[%cal Re5c7]}) 44. Qb5 {[%emt 0:00:12]} Qc7 {[%emt 0:00:03]} 45. Nc4 {[%emt 0:00:08]} Rd8 {[%emt 0:00:03]} 46. Rd2 {[%emt 0:00:11]} Rd5 {[%emt 0:00:05]} 47. a6 {[%emt 0:00:08] [#]} (47. Rxd5 $1 $11 exd5 48. Nd2) 47... Bxh4 {[%emt 0:00:14]} (47... Be5 $1 $17 {[%cal Re5g3]} 48. f4 Bxf4 49. gxf4 Qxf4+ 50. Ke1 Qxh4+ 51. Kd1 Qg4+ 52. Kc2 h4 53. Rxd5 exd5) 48. gxh4 $11 {[%emt 0:00:15]} Qh2+ {[%emt 0:00:01]} 49. Ke3 {[%emt 0:00:02]} Qxh4 {[%emt 0:00:01]} (49... Qg1+ $11 50. Ke2 g5) 50. Ke2 {[%emt 0:00:21]} ({Better is} 50. Rxd5 $14 Qe1+ 51. Kf4 exd5 52. Qxc5 dxc4 53. Qd4+ (53. Qxa7 g5+ {[%mdl 64] Decoy} 54. Kxg5 Qe5+ 55. Kh4 Qh2+ 56. Kg5 Qe5+ 57. Kh4 Qh2+ 58. Kg5 Qe5+ $11) 53... Kf8 54. Qxa7 (54. Qxc4 Qh4+ {[%mdl 64] Skewer} 55. Ke3 Qxc4 56. b4 Qxc3+ 57. Ke2 Qxb4 58. Ke3 h4 59. Ke2 h3 60. Kf2 h2 61. Kg2 Qd2+ 62. Kh3 h1=Q+ 63. Kg4 Qhh2 64. f4 Qdxf4#) 54... g5+ {[%mdl 64] Decoy} 55. Kxg5 Qe5+ 56. Kh4) 50... Qh2+ $11 {[%emt 0:00:04]} 51. Kd1 {[%emt 0:00:01]} Qh1+ {[%emt 0:00:00]} 52. Kc2 {[%emt 0:00:02]} Qxf3 {[%emt 0:00:01]} 53. Rxd5 {[%emt 0:00:07]} (53. Qb7 {feels hotter.} Qf4 54. Rxd5 exd5 55. Nd2) 53... exd5 {[%emt 0:00:00]} 54. Nd2 {[%emt 0:00:02]} Qf2 {[%emt 0:00:01]} (54... Qf5+ $11 55. Kc1 Qf2) 55. Qd7 {[%emt 0:00:10]} (55. Qb8 $14 d4 56. Qe5+ (56. Qxa7 $2 d3+ {[%mdl 64] Deflection} 57. Kb1 Qxd2 $19) 56... Kh7 57. cxd4 (57. Qxc5 $2 d3+ {[%mdl 64] Discovered Attack} 58. Kxd3 Qxc5 $19) 57... cxd4 58. Kd3) 55... c4 $2 {[%emt 0:00:01]} (55... d4 $1 $11 {and Black has nothing to worry.}) 56. Qxd5 $18 {[%emt 0:00:01]} h4 {[%emt 0:00:00]} 57. Qd4+ {[%emt 0:00:24]} (57. Qxc4 $16 {Black must now prevent Qd4+.} h3 58. Qf1) 57... Qxd4 $11 {[%emt 0:00:01]} 58. cxd4 {[%emt 0:00:00]} h3 $2 {[%emt 0:00:05][%mdl 8192]} (58... g5 $11) 59. Nf1 $1 $18 {[%emt 0:00:03]} g5 {[%emt 0:00:01]} 60. Ng3 $2 {[%emt 0:00:29]} (60. Kc3 $18 f5 61. Kxc4) 60... Kf6 {[%emt 0:00:01]} 61. Kc3 {[%emt 0:00:09]} Ke6 {[%emt 0:00:01]} 62. Kxc4 {[%emt 0:00:03]} f5 $1 {[%emt 0:00:01]} 63. Kd3 $2 {[%emt 0:00:07][%mdl 8192]} (63. d5+ $11 Ke5 64. Nh1) 63... f4 $1 {[%emt 0:00:04]} 64. Nh1 {[%emt 0:00:06]} Kd5 $4 {[%emt 0:00:03][%mdl 8192]} (64... g4 {and life is good for Black.} 65. Ke2 g3 66. Nxg3 fxg3 67. Kf3 h2 68. Kg2 Kd5 69. Kh1 Kxd4 70. Kg2 Ke3 71. Kxg3 h1=Q 72. Kg4 Qd5 73. b3 Qe5 74. b4 Qf6 75. Kh3 Qg6 76. b5 Kf3 77. Kh4 Qh6#) 65. b4 $1 $18 {[%emt 0:00:04]} g4 {[%emt 0:00:02]} 66. b5 {[%emt 0:00:00]} g3 {[%emt 0:00:02]} 67. b6 $1 {[%emt 0:00:01]} g2 {[%emt 0:00:02]} 68. bxa7 {[%emt 0:00:01]} g1=Q {[%emt 0:00:02]} 69. a8=Q+ {[%emt 0:00:01]} (69. a8=B+ Kd6 70. Bb7 h2 $19) 69... Kd6 {[%emt 0:00:00]} 70. Qf8+ {[%emt 0:00:02]} Kc6 {[%emt 0:00:02]} 71. Qc5+ {[%emt 0:00:03]} Kd7 {[%emt 0:00:01]} 72. Qb5+ {[%emt 0:00:01]} Kc7 {[%emt 0:00:02]} 73. Qb7+ {[%emt 0:00:02]} Kd6 {[%emt 0:00:01]} 74. Qb8+ $2 {[%emt 0:00:01]} (74. Qb6+ $18 Kd7 75. a7 Qe3+ 76. Kc4 Qe2+ 77. Kd5 (77. Kc5 Qc2+ 78. Kd5 Qf5+ 79. Kc4 Qc2+ 80. Kd5 Qf5+ 81. Kc4 Qc2+ 82. Kd5 $11) 77... Qf3+ 78. Ke5 Qh5+ 79. Kxf4 Qh4+ 80. Kf3 Qh5+ 81. Kg3 Qg5+ 82. Kxh3 Qf5+ 83. Kh2) 74... Kc6 $16 {[%emt 0:00:06]} 75. d5+ {[%emt 0:00:02]} (75. Qe8+ $16 Kb6 76. Qe6+ Kb5 77. a7 (77. Qxh3 Qb1+ 78. Ke2 Qe4+ 79. Kf1 Qxd4 $14) 77... Qd1+ 78. Ke4 Qxh1+ 79. Kxf4 Qh2+ 80. Kf3 (80. Kf5 Qf2+ 81. Kg4 Qxd4+ 82. Kg5 Qxa7 $11) 80... Qg2+ 81. Ke3 Qg3+ 82. Kd2 Qg2+ 83. Ke3 (83. Qe2+ Kb6 $14) 83... Qg1+ 84. Ke2 (84. Kd3 Qb1+ 85. Kd2 Qb2+ 86. Ke3 Qa3+ 87. Kf4 Qxa7 $11) 84... Qg2+ 85. Ke3) 75... Kxd5 $11 {[%emt 0:00:02]} 76. Qb7+ {[%emt 0:00:01]} Ke5 $2 {[%emt 0:00:06][%mdl 8192] [#]} (76... Kd6 $11) 77. Qe7+ $1 $18 {[%emt 0:00:06]} (77. Qe4+ Kd6 $14) 77... Kd5 {[%emt 0:00:01] [#]} 78. Qf7+ $2 {[%emt 0:00:01]} (78. a7 $1 $18 {[%cal Ra7a8]} Qd1+ 79. Kc3 Qc1+ 80. Kb4 Qb2+ 81. Ka5 Qa1+ 82. Kb6 Qg1+ 83. Kb7 Qxh1 84. a8=Q (84. a8=B Kc4+ 85. Kb8 Qb1+ 86. Bb7 Qb6 $11) 84... Kd4+ 85. Kb8) 78... Kc6 $11 {[%emt 0:00:03]} 79. Qb7+ {[%emt 0:00:04]} Kd6 {[%emt 0:00:02]} 80. Qb8+ {[%emt 0:00:02]} Kd5 {[%emt 0:00:02]} 81. a7 {[%emt 0:00:02]} Qd1+ {[%emt 0:00:04]} 82. Kc3 {[%emt 0:00:01]} Qc1+ {[%emt 0:00:01]} 83. Kb4 {[%emt 0:00:02]} Qb2+ {[%emt 0:00:01]} 84. Ka5 {[%emt 0:00:02]} (84. Ka4 $5 Qa2+ $8 85. Kb4 Qb2+ 86. Ka4 Qa2+ 87. Kb4 Qb2+ $11) 84... Qa3+ {[%emt 0:00:01]} 85. Kb6 {[%emt 0:00:01]} Qc5+ $2 {[%emt 0:00:02][%mdl 8192]} (85... Qb4+ $11 86. Kc7 Qe7+ 87. Kb6 Qb4+ 88. Kc7 Qd6+ 89. Kc8 Qe6+ 90. Kd8 Qf6+ 91. Kd7 Qc6+ 92. Ke7 Qe6+ 93. Kd8 Qf6+ 94. Ke8 Qe6+ 95. Kf8 (95. Kd8 Qf6+ $11) 95... Qf6+ 96. Kg8 Qg6+ 97. Kh8 Qh6+ 98. Kg8 Qg6+ 99. Kh8 Qh6+ 100. Kg8 Qg6+) 86. Ka6 {[%emt 0:00:01]} Qa3+ {[%emt 0:00:01]} 87. Kb7 {[%emt 0:00:01]} Qb2+ {[%emt 0:00:09]} 88. Ka8 {[%emt 0:00:02]} Qg2 {[%emt 0:00:01]} 89. Qc7 {[%emt 0:00:05]} Kd4+ {[%emt 0:00:03]} 90. Kb8 {[%emt 0:00:01]} Qxh1 {[%emt 0:00:01]} 91. Qxf4+ {[%emt 0:00:04]} ({Stronger than} 91. a8=B Qb1+ 92. Bb7 Qf5 93. Qd8+ (93. Qd6+ Kc4 $11) 93... Kc3 $11) 91... Kd3 {[%emt 0:00:00]} 92. a8=Q {[%emt 0:00:02]} ({Weaker is} 92. a8=B Qb1+ 93. Bb7 Qb6 $11) 92... Qb1+ {[%emt 0:00:01]} 93. Qb7 {[%emt 0:00:01]} 1-0